bitfinex/quotes_BTCUSD_20250225
["timestamp","ask_amount","ask_price","bid_price","bid_amount"]
[1740489608526,0.0016984,89552.0,89551.0,0.23591538]
[1740489608728,0.0016984,89552.0,89551.0,0.05985035]
[1740489608928,0.0016984,89552.0,89551.0,0.22891532]
[1740489609134,0.0016984,89552.0,89551.0,0.23435235]
[1740489609332,0.0016984,89552.0,89551.0,0.06685035]
[1740489609535,0.0016984,89552.0,89551.0,0.03222085]
[1740489609787,0.1691984,89552.0,89551.0,0.01768]
[1740489610374,0.1691984,89552.0,89551.0,0.02522085]
[1740489610512,0.223388,89531.0,89517.0,0.3235]
[1740489610717,1.08714886,89549.0,89527.0,0.7]
[1740489610958,1.08714886,89549.0,89523.0,0.01068]
[1740489611161,0.0821,89547.0,89523.0,0.01068]
[1740489611572,0.167522,89540.0,89539.0,0.09947378]
[1740489612837,0.167521,89541.0,89540.0,0.01454085]
[1740489614050,0.167521,89541.0,89540.0,0.02154085]
[1740489615468,0.223347,89547.0,89540.0,0.02154085]
[1740489615704,0.167521,89541.0,89540.0,0.02154085]
[1740489616509,0.167523,89540.0,89525.0,0.01454085]
[1740489616714,0.223343,89548.0,89540.0,0.007]
[1740489616921,0.167521,89541.0,89540.0,0.007]
[1740489617120,0.167519,89542.0,89541.0,0.01068]
[1740489617331,0.167519,89542.0,89541.0,0.02522085]
[1740489618424,0.167519,89542.0,89541.0,0.03222085]
[1740489619654,0.167519,89542.0,89541.0,0.02522085]
[1740489621150,0.167519,89542.0,89541.0,0.03222085]
[1740489621376,0.167519,89542.0,89541.0,0.02522085]
[1740489621778,0.167512,89546.0,89542.0,0.01454085]
[1740489622120,0.167517,89543.0,89542.0,0.01454085]
[1740489622532,0.223353,89545.0,89542.0,0.01454085]
[1740489622656,0.167517,89543.0,89542.0,0.01454085]
[1740489623297,0.167517,89543.0,89542.0,0.02154085]
[1740489623503,0.167515,89544.0,89542.0,0.01454085]
[1740489623707,0.167517,89543.0,89542.0,0.01454085]
[1740489623955,0.167517,89543.0,89542.0,0.02154085]
[1740489624271,0.167515,89544.0,89542.0,0.02154085]
[1740489624480,0.167517,89543.0,89542.0,0.02154085]
[1740489624687,0.223345,89548.0,89542.0,0.02854085]
[1740489624869,0.167517,89543.0,89542.0,0.02854085]
[1740489625720,0.167517,89543.0,89542.0,0.03922085]
[1740489626002,0.167517,89543.0,89542.0,0.02522085]
[1740489626423,0.167517,89543.0,89542.0,0.03222085]
[1740489626615,0.167517,89543.0,89542.0,0.02522085]
[1740489627068,0.167517,89543.0,89542.0,0.03222085]
[1740489627421,0.167517,89543.0,89542.0,0.03922085]
[1740489627768,0.167517,89543.0,89542.0,0.03222085]
[1740489627965,0.167517,89543.0,89542.0,0.02522085]
[1740489628169,0.167517,89543.0,89540.0,0.0008479]
[1740489628170,0.167521,89541.0,89540.0,0.0008479]
[1740489628297,0.54558565,89541.0,89540.0,0.0115279]
[1740489628502,0.544021,89541.0,89540.0,0.0008479]
[1740489629945,0.544021,89541.0,89540.0,0.0078479]
[1740489630276,0.544021,89541.0,89540.0,0.0008479]
[1740489630525,0.544021,89541.0,89540.0,0.0078479]
[1740489633561,0.244021,89541.0,89540.0,0.0078479]
[1740489637682,0.167537,89532.0,89531.0,0.01068]
[1740489637883,0.167554,89523.0,89522.0,0.0008481]
[1740489638126,1.25470286,89523.0,89522.0,0.02606895]
[1740489638340,1.55470286,89523.0,89522.0,0.0008481]
[1740489638509,1.63210286,89523.0,89522.0,0.0008481]
[1740489639229,1.63210286,89523.0,89522.0,0.0078481]
[1740489639524,1.63210286,89523.0,89522.0,0.0008481]
[1740489639747,1.63210286,89523.0,89522.0,0.0078481]
[1740489640052,1.63210286,89523.0,89522.0,0.0008481]
[1740489640467,1.63210286,89523.0,89522.0,0.0078481]
[1740489642613,1.63210286,89523.0,89509.0,0.01454085]
[1740489642614,1.51374886,89523.0,89521.0,0.00680714]
[1740489642846,0.46912065,89522.0,89521.0,0.00093398]
[1740489643055,0.467556,89522.0,89521.0,0.00093398]
[1740489643485,0.48848351,89522.0,89521.0,0.00093398]
[1740489644160,0.48948351,89522.0,89521.0,0.00093398]
[1740489644412,0.48848351,89522.0,89521.0,0.00093398]
[1740489644583,0.167588,89505.0,89504.0,0.01068]
[1740489644818,1.25473686,89505.0,89504.0,0.01068]
[1740489645025,1.55473686,89505.0,89504.0,0.02522085]
[1740489645178,1.56892772,89505.0,89504.0,0.02522085]
[1740489647186,1.56992772,89505.0,89504.0,0.02522085]
[1740489647381,1.56892772,89505.0,89504.0,0.02522085]
[1740489647666,1.56992772,89505.0,89504.0,0.02522085]
[1740489647862,0.01519086,89505.0,89504.0,0.02522085]
[1740489648066,0.001,89505.0,89504.0,0.02740815]
[1740489648285,0.001,89505.0,89504.0,0.24459815]
[1740489649064,0.001,89505.0,89504.0,0.07700815]
[1740489649602,0.168588,89505.0,89504.0,0.02740815]
[1740489649815,0.01430361,89514.0,89504.0,0.01068]
[1740489650017,0.167575,89513.0,89504.0,0.01284068]
[1740489650239,0.001,89505.0,89504.0,0.01068]
[1740489650438,0.3,89521.0,89504.0,0.01068]
[1740489650613,0.00155,89505.0,89504.0,0.02522085]
[1740489650830,0.00255,89505.0,89504.0,0.02522085]
[1740489651038,0.00155,89505.0,89504.0,0.02522085]
[1740489651267,0.169138,89505.0,89504.0,0.02522085]
[1740489651608,0.170138,89505.0,89504.0,0.02522085]
[1740489651782,0.169138,89505.0,89504.0,0.02522085]
[1740489652224,0.159138,89505.0,89504.0,0.02522085]
[1740489652959,1.24628686,89505.0,89504.0,0.01454085]
[1740489653180,0.167605,89496.0,89495.0,0.17736]
[1740489653372,0.167605,89496.0,89495.0,0.20258085]
[1740489653581,0.167605,89496.0,89495.0,0.20474655]
[1740489654073,1.55475386,89496.0,89495.0,0.1795257]
[1740489654286,1.63435386,89496.0,89495.0,0.17736]
[1740489654514,1.63535386,89496.0,89495.0,0.18036]
[1740489654822,1.63535386,89496.0,89495.0,0.19190085]
[1740489655023,1.63635386,89496.0,89495.0,0.19490085]
[1740489655451,1.08914886,89496.0,89495.0,0.19490085]
[1740489656218,1.08814886,89496.0,89495.0,0.19490085]
[1740489656417,1.08714886,89496.0,89495.0,0.19190085]
[1740489656825,0.001,89496.0,89495.0,0.36650785]
[1740489656984,0.001,89496.0,89495.0,0.37938575]
[1740489657183,0.001,89496.0,89495.0,0.03441875]
[1740489657402,0.001,89496.0,89495.0,0.20358984]
[1740489657623,0.001,89496.0,89495.0,0.28333794]
[1740489657859,0.001,89496.0,89495.0,0.11416685]
[1740489658064,0.467571,89515.0,89496.0,0.18214485]
[1740489658267,0.167575,89512.0,89498.0,0.01454085]
[1740489658683,0.3,89515.0,89498.0,0.01454085]
[1740489658826,0.167571,89514.0,89500.0,0.01454085]
[1740489659029,0.46757,89515.0,89502.0,0.01454085]
[1740489659490,0.167568,89516.0,89502.0,0.01354085]
[1740489659786,0.167569,89515.0,89502.0,0.01354085]
[1740489659986,0.167572,89514.0,89503.0,0.00156397]
[1740489660148,0.168572,89514.0,89503.0,0.00156397]
[1740489660346,0.001,89514.0,89503.0,0.00156397]
[1740489660547,0.001,89514.0,89504.0,0.03472603]
[1740489660783,0.001,89514.0,89513.0,0.296973]
[1740489660961,0.001,89516.0,89515.0,0.167569]
[1740489661166,0.001,89516.0,89515.0,0.16813271]
[1740489661384,0.001,89516.0,89515.0,0.18483787]
[1740489661764,0.001,89516.0,89515.0,0.21954119]
[1740489662026,0.001,89516.0,89515.0,0.21797748]
[1740489662701,0.0016962,89521.0,89520.0,0.18210085]
[1740489662903,0.0016962,89521.0,89520.0,0.21736762]
[1740489663129,0.0016962,89521.0,89520.0,0.21946407]
[1740489663352,0.0016962,89521.0,89520.0,1.07120062]
[1740489663543,0.0016958,89542.0,89526.0,0.1]
[1740489663751,0.0016958,89542.0,89541.0,0.26266185]
[1740489663953,0.0016958,89542.0,89541.0,0.05992417]
[1740489664185,0.0016958,89542.0,89541.0,0.02422085]
[1740489664364,0.0016958,89542.0,89541.0,0.19174185]
[1740489664657,0.0016958,89542.0,89541.0,0.02422085]
[1740489666326,0.1692148,89542.0,89541.0,0.03122085]
[1740489666865,0.0016958,89542.0,89541.0,0.03122085]
[1740489667174,0.1692148,89542.0,89541.0,0.02422085]
[1740489667433,0.1692148,89542.0,89541.0,0.03122085]
[1740489667614,0.1692148,89542.0,89541.0,0.02422085]
[1740489667993,0.0016958,89542.0,89541.0,0.02422085]
[1740489668637,0.1692148,89542.0,89541.0,0.02422085]
[1740489669045,0.1692148,89542.0,89541.0,0.03122085]
[1740489669649,0.0016958,89542.0,89541.0,0.03122085]
[1740489669968,0.0016958,89542.0,89541.0,0.19874185]
[1740489670170,0.0016958,89542.0,89541.0,0.2003051]
[1740489670579,0.0016958,89542.0,89541.0,0.1093841]
[1740489670933,0.0016958,89542.0,89541.0,0.2769051]
[1740489671134,0.0016958,89542.0,89541.0,0.10782085]
[1740489671354,0.0016958,89542.0,89541.0,0.10938405]
[1740489671792,0.0016958,89542.0,89541.0,0.03122085]
[1740489672212,0.0016958,89542.0,89541.0,0.02054085]
[1740489672213,0.1692148,89542.0,89541.0,0.02054085]
[1740489672409,0.1692148,89542.0,89541.0,0.007]
[1740489672410,1.55792831,89542.0,89541.0,0.007]
[1740489672610,1.55636366,89542.0,89541.0,0.007]
[1740489672814,0.167564,89518.0,89515.0,0.0008482]
[1740489673865,0.167567,89516.0,89515.0,0.0008482]
[1740489674487,0.1821586,89516.0,89515.0,0.0008482]
[1740489675276,0.1821586,89516.0,89515.0,0.01538905]
[1740489675484,0.0145916,89516.0,89515.0,0.01538905]
[1740489675697,0.1821586,89516.0,89515.0,0.01538905]
[1740489675845,0.167567,89516.0,89515.0,0.01538905]
[1740489676112,0.168567,89516.0,89515.0,0.02238905]
[1740489676335,0.182731,89516.0,89515.0,0.02238905]
[1740489676542,0.182731,89516.0,89515.0,0.0078482]
[1740489676695,0.18429565,89516.0,89515.0,0.0078482]
[1740489677094,0.182731,89516.0,89515.0,0.0078482]
[1740489679353,0.182731,89516.0,89515.0,0.0075211]
[1740489679678,0.259031,89516.0,89515.0,0.0075211]
[1740489679954,0.37288796,89516.0,89515.0,1e-07]
[1740489680337,0.259031,89516.0,89515.0,1e-07]
[1740489681485,0.167605,89496.0,89491.0,0.01064]
[1740489681682,1.25475386,89496.0,89489.0,0.0008485]
[1740489681838,1.33415386,89496.0,89489.0,0.0008485]
[1740489683082,1.33515386,89496.0,89489.0,0.0008485]
[1740489683284,1.33415386,89496.0,89489.0,0.0008485]
[1740489684632,1.33515386,89496.0,89489.0,0.0008485]
[1740489684987,1.33415386,89496.0,89489.0,0.0008485]
[1740489685171,1.33515386,89496.0,89489.0,0.0008485]
[1740489685378,1.66305386,89496.0,89489.0,0.0008485]
[1740489685889,1.77691082,89496.0,89489.0,0.0008485]
[1740489686121,1.66305386,89496.0,89489.0,0.0008485]
[1740489686882,1.66305386,89496.0,89495.0,1e-07]
[1740489689271,0.16765,89472.0,89471.0,0.000849]
[1740489689476,1.25479886,89472.0,89471.0,0.000849]
[1740489690728,1.26872732,89472.0,89471.0,0.000849]
[1740489691089,1.26972732,89472.0,89471.0,0.01538985]
[1740489691592,1.10207732,89472.0,89471.0,0.01538985]
[1740489692438,0.001,89472.0,89471.0,0.01538985]
[1740489692736,0.001,89472.0,89471.0,0.01764377]
[1740489693190,0.16865,89472.0,89471.0,0.01764377]
[1740489693374,0.001,89472.0,89471.0,0.01764377]
[1740489693585,0.001,89472.0,89471.0,0.01538985]
[1740489693989,0.167633,89481.0,89472.0,0.01454085]
[1740489694292,0.223454,89504.0,89472.0,0.01454085]
[1740489694293,0.77273604,89484.0,89476.0,0.01454085]
[1740489694493,0.77273604,89494.0,89480.0,0.01454085]
[1740489694856,0.99621504,89494.0,89478.0,0.01454085]
[1740489695056,0.167611,89493.0,89480.0,0.01454085]
[1740489695371,0.001,89481.0,89472.0,0.01454085]
[1740489695568,0.7867404,89494.0,89474.0,0.01454085]
[1740489695769,0.167631,89483.0,89476.0,0.01454085]
[1740489695987,0.3,89491.0,89476.0,0.01454085]
[1740489696293,0.167629,89484.0,89472.0,0.01454085]
[1740489696433,0.001,89481.0,89474.0,0.01454085]
[1740489696635,0.168633,89481.0,89474.0,0.01454085]
[1740489696855,0.167633,89481.0,89472.0,0.01454085]
[1740489697057,0.167618,89489.0,89474.0,0.167646]
[1740489697260,0.167644,89475.0,89474.0,0.01454085]
[1740489697478,0.16765,89472.0,89471.0,0.000849]
[1740489697687,0.16765,89472.0,89471.0,0.02602985]
[1740489697889,0.46765,89472.0,89471.0,0.02602985]
[1740489698089,0.3,89472.0,89471.0,0.02602985]
[1740489698289,0.46765,89472.0,89471.0,0.02602985]
[1740489698901,0.46765,89472.0,89471.0,0.01538985]
[1740489699340,0.46765,89472.0,89471.0,0.02602985]
[1740489699471,0.46865,89472.0,89471.0,0.03302985]
[1740489699668,0.16865,89472.0,89471.0,0.03302985]
[1740489700075,0.16965,89472.0,89471.0,0.04002985]
[1740489700295,0.223529,89474.0,89472.0,0.01454085]
[1740489700494,0.167648,89473.0,89472.0,0.01454085]
[1740489700814,0.167648,89473.0,89472.0,0.01354085]
[1740489701884,0.223529,89474.0,89471.0,0.011489]
[1740489702085,0.16765,89472.0,89471.0,0.011489]
[1740489702301,0.16865,89472.0,89471.0,0.018489]
[1740489702499,0.94138604,89472.0,89471.0,0.011489]
[1740489703112,0.001,89473.0,89471.0,0.011489]
[1740489703341,0.16865,89473.0,89472.0,0.01454085]
[1740489703543,0.16865,89473.0,89472.0,0.01576438]
[1740489703750,0.16765,89473.0,89472.0,0.01354085]
[1740489705071,0.16765,89473.0,89472.0,0.01254085]
[1740489705578,0.16765,89473.0,89472.0,0.03018085]
[1740489705778,0.16865,89473.0,89472.0,0.03018085]
[1740489706004,0.168648,89473.0,89472.0,0.03018085]
[1740489706423,0.167648,89473.0,89472.0,0.02318085]
[1740489706855,0.168648,89473.0,89472.0,0.03018085]
[1740489707057,0.001,89473.0,89472.0,0.03018085]
[1740489707443,0.001,89473.0,89472.0,0.03240438]
[1740489708064,0.3279,89485.0,89472.0,0.02540438]
[1740489708260,0.167637,89479.0,89472.0,0.02540438]
[1740489708418,0.001,89473.0,89472.0,0.03018085]
[1740489708626,0.001,89473.0,89472.0,0.02318085]
[1740489709056,0.002,89473.0,89472.0,0.03240438]
[1740489709267,0.167641,89477.0,89472.0,0.02540438]
[1740489709599,0.167641,89477.0,89472.0,0.03018085]
[1740489709796,0.001,89473.0,89472.0,0.03018085]
[1740489709956,0.001,89473.0,89472.0,0.02318085]
[1740489710355,0.168648,89473.0,89472.0,0.02318085]
[1740489710696,0.168648,89473.0,89472.0,0.01254085]
[1740489710856,0.168648,89473.0,89472.0,0.02318085]
[1740489711235,0.168648,89473.0,89472.0,0.03018085]
[1740489711236,0.169648,89473.0,89472.0,0.03018085]
[1740489711677,0.167648,89473.0,89472.0,0.02318085]
[1740489712000,0.168648,89473.0,89472.0,0.03018085]
[1740489712210,0.168648,89473.0,89472.0,0.02318085]
[1740489712563,0.169648,89473.0,89472.0,0.03018085]
[1740489712904,0.168648,89473.0,89472.0,0.02318085]
[1740489713310,0.169648,89473.0,89472.0,0.03018085]
[1740489714633,0.17121265,89473.0,89472.0,0.007]
[1740489714824,0.17121265,89473.0,89472.0,0.01764]
[1740489715032,0.17121265,89473.0,89472.0,0.03218085]
[1740489715252,0.797548,89473.0,89472.0,0.007]
[1740489715451,0.3,89472.0,89471.0,0.000849]
[1740489715615,1.24038604,89472.0,89471.0,0.000849]
[1740489716913,1.25087305,89472.0,89471.0,0.000849]
[1740489718622,1.24138604,89472.0,89471.0,0.007849]
[1740489718802,1.24038604,89472.0,89471.0,0.000849]
[1740489719155,1.24138604,89472.0,89471.0,0.007849]
[1740489719499,1.24138604,89472.0,89471.0,0.000849]
[1740489719839,1.24238604,89472.0,89471.0,0.007849]
[1740489720046,1.24238604,89472.0,89458.0,0.0008492]
[1740489720047,0.467674,89459.0,89458.0,0.0008492]
[1740489720244,1.24041004,89459.0,89458.0,0.0114892]
[1740489720867,1.24041004,89459.0,89458.0,0.0008492]
[1740489721324,1.36411004,89459.0,89458.0,2e-07]
[1740489721636,1.38507823,89459.0,89458.0,2e-07]
[1740489722049,0.0824,89449.0,89445.0,0.00081021]
[1740489722257,0.467717,89436.0,89435.0,0.09991707]
[1740489722463,1.32285304,89436.0,89435.0,0.09991707]
[1740489723052,0.167723,89433.0,89415.0,0.01064]
[1740489723257,0.91104461,89433.0,89405.0,0.0008479]
[1740489723583,0.80943975,89433.0,89413.0,0.01064]
[1740489723783,0.81991971,89433.0,89413.0,0.01064]
[1740489724669,0.81991971,89433.0,89405.0,0.0008479]
[1740489724670,0.81991971,89433.0,89408.0,0.01454085]
[1740489724870,0.81991971,89433.0,89414.0,0.01064]
[1740489725602,0.80943975,89433.0,89414.0,0.01064]
[1740489725814,0.80943975,89433.0,89412.0,0.01064]
[1740489725984,0.81043975,89433.0,89412.0,0.01064]
[1740489726228,0.3,89432.0,89412.0,0.01064]
[1740489726432,0.467736,89426.0,89412.0,0.01064]
[1740489726630,0.467736,89426.0,89405.0,0.0008479]
[1740489726631,1.24047204,89426.0,89405.0,0.0008479]
[1740489726788,1.34403718,89426.0,89409.0,0.01064]
[1740489727412,1.34403718,89426.0,89405.0,0.0008479]
[1740489727413,1.42483718,89426.0,89405.0,0.0008479]
[1740489727608,1.75273718,89426.0,89425.0,2e-07]
[1740489728036,0.167773,89406.0,89405.0,0.0008479]
[1740489728231,0.94050904,89406.0,89405.0,0.0008479]
[1740489728405,1.24050904,89406.0,89405.0,0.0008479]
[1740489728608,1.24205178,89406.0,89405.0,0.0008479]
[1740489729043,1.24050904,89406.0,89405.0,0.0008479]
[1740489729418,1.56840904,89406.0,89405.0,0.0008479]
[1740489729837,1.56995178,89406.0,89405.0,0.0008479]
[1740489730837,1.5700375,89406.0,89405.0,0.0008479]
[1740489731438,1.56840904,89406.0,89405.0,0.0008479]
[1740489732256,1.56840904,89406.0,89405.0,0.01538875]
[1740489732459,1.10063604,89406.0,89405.0,0.01538875]
[1740489732812,0.77273604,89406.0,89405.0,0.01538875]
[1740489733041,0.77273604,89416.0,89406.0,0.01454085]
[1740489733243,0.77273604,89416.0,89405.0,0.0008479]
[1740489733564,0.167773,89406.0,89405.0,0.0008479]
[1740489733762,1.56997369,89406.0,89405.0,0.0008479]
[1740489733964,1.56840904,89406.0,89405.0,0.0008479]
[1740489736598,1.57007821,89406.0,89405.0,0.0008479]
[1740489737147,1.65187821,89406.0,89405.0,0.0008479]
[1740489737432,2.29983517,89406.0,89405.0,9e-07]
[1740489737582,2.28597821,89406.0,89405.0,9e-07]
[1740489738116,1.34546917,89406.0,89405.0,9e-07]
[1740489738323,1.41324217,89406.0,89405.0,9e-07]
[1740489738857,1.411573,89406.0,89405.0,9e-07]
[1740489739116,0.467783,89401.0,89400.0,9e-07]
[1740489740406,0.167783,89401.0,89400.0,9e-07]
[1740489740842,0.16934765,89401.0,89400.0,9e-07]
[1740489741774,0.49724765,89401.0,89400.0,9e-07]
[1740489742036,0.495683,89401.0,89400.0,9e-07]
[1740489742378,0.495683,89401.0,89400.0,0.01539075]
[1740489743034,0.3279,89401.0,89400.0,0.01539075]
[1740489743253,0.495683,89401.0,89400.0,0.01539075]
[1740489745669,0.875183,89401.0,89400.0,0.0008499]
[1740489746682,0.922083,89401.0,89400.0,0.0008499]
[1740489747407,0.467802,89391.0,89390.0,0.0008479]
[1740489747735,0.467802,89391.0,89390.0,0.01780734]
[1740489747736,1.43577135,89391.0,89390.0,0.01780734]
[1740489747908,1.43577135,89391.0,89390.0,0.01538875]
[1740489748301,1.43577135,89391.0,89390.0,0.01781613]
[1740489748698,1.43577135,89391.0,89390.0,0.00327528]
[1740489749089,1.51137135,89391.0,89390.0,0.00327528]
[1740489750089,1.53229913,89391.0,89390.0,0.00327528]
[1740489751137,1.54276225,89391.0,89390.0,0.00327528]
[1740489751391,0.467805,89389.0,89388.0,100.0]
[1740489752662,0.48873278,89389.0,89388.0,100.0]
[1740489753246,0.4991959,89389.0,89388.0,100.0]
[1740489753586,0.8270959,89389.0,89388.0,100.0]
[1740489753905,0.5270959,89389.0,89388.0,100.01454085]
[1740489754091,0.3592909,89389.0,89388.0,100.01538985]
[1740489754497,0.5270959,89389.0,89388.0,100.01538985]
[1740489754802,0.3592909,89389.0,89388.0,100.01538985]
[1740489755407,0.34882778,89389.0,89388.0,100.01538985]
[1740489756010,0.3279,89389.0,89388.0,100.01538985]
[1740489756216,0.3279,89389.0,89388.0,100.18319685]
[1740489756435,0.3279,89389.0,89388.0,100.01538985]
[1740489756659,0.223706,89403.0,89389.0,0.01454085]
[1740489756836,0.223701,89405.0,89391.0,0.01454085]
[1740489757033,0.862,89421.0,89391.0,0.01454085]
[1740489757258,0.30156465,89420.0,89391.0,0.01454085]
[1740489757542,0.3,89404.0,89393.0,0.01454085]
[1740489757781,0.3,89402.0,89393.0,0.01454085]
[1740489757982,0.3,89402.0,89391.0,0.01454085]
[1740489758159,0.3,89402.0,89401.0,0.18232385]
[1740489758340,0.3,89402.0,89401.0,0.01454085]
[1740489758508,0.3,89420.0,89402.0,0.01454085]
[1740489758707,0.467779,89403.0,89402.0,0.01454085]
[1740489758910,0.167786,89400.0,89391.0,0.01454085]
[1740489759150,0.167786,89400.0,89393.0,0.01454085]
[1740489759452,0.167792,89396.0,89395.0,0.01454085]
[1740489759662,0.167805,89389.0,89388.0,100.000849]
[1740489759866,0.467805,89389.0,89388.0,100.011489]
[1740489760067,0.467805,89389.0,89388.0,100.02602985]
[1740489760264,0.467805,89389.0,89388.0,100.011489]
[1740489760498,0.467805,89389.0,89388.0,100.02602985]
[1740489761008,0.3,89389.0,89388.0,100.02602985]
[1740489761595,0.3,89389.0,89388.0,100.22866312]
[1740489761788,0.3,89389.0,89388.0,100.06085612]
[1740489761988,0.64006935,89400.0,89389.0,0.01454085]
[1740489762293,0.64006935,89400.0,89391.0,0.01454085]
[1740489762294,0.1678,89392.0,89391.0,0.01454085]
[1740489762510,0.167804,89390.0,89389.0,0.01454085]
[1740489762705,0.4678,89392.0,89391.0,0.01064]
[1740489762853,0.3,89392.0,89391.0,0.01064]
[1740489763060,0.4678,89392.0,89391.0,0.02518085]
[1740489765669,0.4694982,89392.0,89391.0,0.02518085]
[1740489765870,0.3,89391.0,89388.0,100.000849]
[1740489766079,0.467805,89389.0,89388.0,100.000849]
[1740489767488,0.467805,89389.0,89388.0,100.01538985]
[1740489767825,0.3,89389.0,89388.0,100.01538985]
[1740489768065,0.467805,89389.0,89388.0,100.01538985]
[1740489768264,0.3,89389.0,89388.0,100.18319685]
[1740489768470,0.3,89389.0,89388.0,100.01538985]
[1740489768687,0.3,89389.0,89388.0,100.21802562]
[1740489768891,0.3,89389.0,89388.0,100.18319685]
[1740489769191,0.3,89389.0,89388.0,100.05021795]
[1740489769422,0.0016982,89392.0,89389.0,0.01454085]
[1740489769565,0.3016982,89392.0,89389.0,0.01454085]
[1740489769776,0.167804,89390.0,89389.0,0.01454085]
[1740489769973,0.467804,89390.0,89389.0,0.01454085]
[1740489770382,0.467804,89390.0,89389.0,0.02518085]
[1740489770951,0.467804,89390.0,89389.0,0.01454085]
[1740489771347,0.467804,89390.0,89389.0,0.02518085]
[1740489774243,1.10787335,89390.0,89389.0,0.02518085]
[1740489774998,0.94006935,89390.0,89389.0,0.02518085]
[1740489775198,1.10787335,89390.0,89389.0,0.02518085]
[1740489776426,0.94006935,89390.0,89389.0,0.02518085]
[1740489776714,1.10787335,89390.0,89389.0,0.02518085]
[1740489778189,1.10957155,89390.0,89389.0,0.02518085]
[1740489778588,0.94176755,89390.0,89389.0,0.02518085]
[1740489778793,0.3016982,89390.0,89389.0,0.02518085]
[1740489779017,0.0016982,89390.0,89389.0,0.19298585]
[1740489779738,0.0016982,89390.0,89389.0,0.19186907]
[1740489780346,0.0016982,89392.0,89391.0,0.167802]
[1740489780652,0.0016982,89392.0,89391.0,0.0348187]
[1740489780886,0.0016982,89392.0,89389.0,0.10576407]
[1740489781053,0.467804,89390.0,89389.0,0.01342407]
[1740489781257,0.467804,89390.0,89389.0,0.01064]
[1740489781437,0.3,89390.0,89389.0,0.01064]
[1740489781779,0.3,89390.0,89389.0,0.02518085]
[1740489782422,0.467804,89390.0,89389.0,0.02518085]
[1740489782956,0.167804,89390.0,89389.0,0.02518085]
[1740489783913,0.80787335,89390.0,89389.0,0.02518085]
[1740489788613,0.64006935,89390.0,89389.0,0.02518085]
[1740489788813,0.80787335,89390.0,89389.0,0.02518085]
[1740489790345,0.80787335,89390.0,89389.0,0.02602995]
[1740489790549,0.80957155,89390.0,89389.0,0.02602995]
[1740489794147,0.0016982,89390.0,89389.0,0.19383495]
[1740489794682,0.0016982,89390.0,89389.0,0.27664861]
[1740489795322,0.0016982,89390.0,89389.0,0.10884361]
[1740489795657,0.0016982,89390.0,89389.0,0.06094361]
[1740489796054,0.1695022,89390.0,89389.0,0.06094361]
[1740489796259,0.1695022,89390.0,89389.0,0.02602995]
[1740489796663,0.0016982,89390.0,89389.0,0.02602995]
[1740489797093,0.1695022,89390.0,89389.0,0.02602995]
[1740489797588,0.0016982,89390.0,89389.0,0.02602995]
[1740489798792,0.0016982,89390.0,89389.0,0.19383495]
[1740489798952,0.0016982,89390.0,89389.0,0.19540114]
[1740489799155,0.0016982,89390.0,89389.0,0.30792799]
[1740489799380,0.0016982,89390.0,89389.0,0.3063618]
[1740489800085,0.00063921,89390.0,89389.0,0.3540618]
[1740489800903,0.00063921,89390.0,89389.0,0.0980168]
[1740489801136,0.00063921,89390.0,89389.0,0.04641595]
[1740489801307,0.16844321,89390.0,89389.0,0.0114891]
[1740489801509,0.00063921,89390.0,89389.0,0.19383495]
[1740489801685,0.00063921,89390.0,89389.0,0.22873737]
[1740489804333,0.00063921,89390.0,89389.0,0.06093237]
[1740489804547,0.16844321,89390.0,89389.0,0.05029237]
[1740489804901,0.16844321,89390.0,89389.0,0.0114891]
[1740489805108,0.16844321,89390.0,89389.0,0.0008491]
[1740489805299,0.16844321,89390.0,89389.0,0.0114891]
[1740489805465,0.46844321,89390.0,89389.0,0.0008491]
[1740489805660,0.46844321,89390.0,89389.0,0.0114891]
[1740489806227,1.10851256,89390.0,89389.0,0.0114891]
[1740489806400,1.10851256,89390.0,89389.0,0.02602995]
[1740489806915,1.10851256,89390.0,89389.0,0.01538995]
[1740489810424,1.10851256,89390.0,89389.0,0.0008491]
[1740489810630,1.51641256,89390.0,89389.0,0.0008491]
[1740489811372,0.87634321,89390.0,89389.0,0.0008491]
[1740489811600,0.79634321,89390.0,89389.0,0.0008491]
[1740489813866,0.87794321,89390.0,89389.0,0.0008491]
[1740489814042,0.87794321,89390.0,89388.0,100.000849]
[1740489814248,0.87794321,89390.0,89388.0,99.93422236]
[1740489814249,0.591705,89389.0,89388.0,99.93422236]
[1740489815671,0.3630804,89389.0,89388.0,99.93422236]
[1740489815911,0.5308854,89389.0,89388.0,99.93631918]
[1740489816098,0.8587854,89389.0,89388.0,99.93631918]
[1740489818739,0.84829569,89389.0,89388.0,99.93631918]
[1740489819325,0.84829569,89389.0,89388.0,99.39332278]
[1740489820276,0.72439569,89389.0,89388.0,99.39332278]
[1740489826613,0.72439569,89389.0,89388.0,99.28648382]
[1740489826790,0.72439569,89389.0,89388.0,99.26739475]
[1740489827058,1.49985265,89389.0,89388.0,98.92058475]
[1740489827231,1.69985265,89389.0,89388.0,98.53550688]
[1740489827450,1.71032551,89389.0,89388.0,98.24692245]
[1740489827646,1.71032551,89389.0,89388.0,95.50750591]
[1740489827849,1.66157208,89389.0,89388.0,95.41799528]
[1740489828231,1.67500506,89389.0,89388.0,95.07040033]
[1740489828364,1.67500506,89389.0,89388.0,95.02490877]
[1740489828748,1.61585603,89389.0,89388.0,94.94520877]
[1740489828988,1.61550907,89389.0,89388.0,94.94520877]
[1740489829189,2.15470907,89389.0,89388.0,94.61730877]
[1740489829400,2.15505603,89389.0,89388.0,94.61730877]
[1740489829983,2.17597699,89389.0,89388.0,94.61730877]
[1740489830379,1.95984048,89389.0,89388.0,94.61730877]
[1740489830607,2.05984048,89389.0,89388.0,94.61730877]
[1740489830813,1.29194979,89389.0,89388.0,94.61730877]
[1740489831008,1.16119882,89389.0,89388.0,94.61730877]
[1740489831216,1.46119882,89389.0,89388.0,94.61730877]
[1740489831617,1.16119882,89389.0,89388.0,94.61730877]
[1740489832196,0.52709882,89389.0,89388.0,94.61730877]
[1740489832745,0.52709882,89389.0,89388.0,94.69270877]
[1740489832955,0.82709882,89389.0,89388.0,94.69270877]
[1740489833150,0.52709882,89389.0,89388.0,94.69270877]
[1740489833461,0.82709882,89389.0,89388.0,94.61730877]
[1740489833919,0.52709882,89389.0,89388.0,94.61730877]
[1740489834277,0.82709882,89389.0,89388.0,94.63162953]
[1740489834475,0.50617786,89389.0,89388.0,94.70822953]
[1740489834901,0.80617786,89389.0,89388.0,94.69368868]